fUSD/lending_fUSD_20240515
["ID","MTS","AMOUNT","RATE_DAILY","PERIOD"]
[327066889,1715776244385,-500.0,0.0001178,2]
[327066890,1715776244395,-500.0,0.0001178,2]
[327066891,1715776244404,-500.0,0.0001178,2]
[327066892,1715776244414,-500.0,0.0001178,2]
[327066893,1715776244423,-500.0,0.0001178,2]
[327066894,1715776244432,-500.0,0.0001178,2]
[327066895,1715776244442,-500.0,0.0001178,2]
[327066896,1715776244452,-500.0,0.0001178,2]
[327066897,1715776244467,-500.0,0.0001178,2]
[327066898,1715776244476,-500.0,0.0001178,2]
[327066899,1715776244485,-328.69,0.0001178,2]
[327066900,1715776244495,-500.0,0.0001178,2]
[327066901,1715776244505,-151.0,0.0001178,2]
[327066902,1715776244514,-500.0,0.0001178,2]
[327066903,1715776244524,-500.0,0.0001178,2]
[327066904,1715776244535,-500.0,0.0001178,2]
[327066905,1715776244545,-342.050319,0.0001178,2]
[327066906,1715776244555,-428.71,0.0001178,2]
[327066907,1715776244565,-523.15077973,0.0001178,2]
[327066908,1715776244575,-399.2,0.0001178,2]
[327066909,1715776244585,-151.0,0.0001178,2]
[327066910,1715776244594,-500.0,0.0001178,2]
[327066911,1715776244604,-500.0,0.0001178,2]
[327066912,1715776244613,-503.08784467,0.0001178,2]
[327066913,1715776244623,-500.0,0.0001178,2]
[327066914,1715776244635,-500.0,0.0001178,2]
[327066915,1715776244645,-178.86,0.0001178,2]
[327066916,1715776244654,-500.0,0.0001178,2]
[327066917,1715776244664,-342.050319,0.0001178,2]
[327066918,1715776244674,-500.0,0.00011793,2]
[327066919,1715776244684,-500.0,0.00011793,2]
[327066920,1715776244694,-500.0,0.00011793,2]
[327066921,1715776244707,-500.0,0.00011793,2]
[327066922,1715776244720,-500.0,0.00011793,2]
[327066923,1715776244729,-500.0,0.00011793,2]
[327066924,1715776244739,-500.0,0.00011793,2]
[327066925,1715776244748,-500.0,0.00011793,2]
[327066926,1715776244761,-500.0,0.00011793,2]
[327066927,1715776244771,-577.84,0.00011793,2]
[327066928,1715776244781,-500.0,0.00011793,2]
[327066929,1715776244792,-649.24,0.00011793,2]
[327066930,1715776244802,-500.0,0.00011793,2]
[327066931,1715776244813,-272.7,0.00011793,2]
[327066932,1715776244823,-500.0,0.00011793,2]
[327066933,1715776244832,-500.0,0.00011793,2]
[327066934,1715776244842,-500.0,0.00011793,2]
[327066935,1715776244853,-500.0,0.00011793,2]
[327066936,1715776244863,-500.0,0.00011793,2]
[327066937,1715776244873,-500.0,0.00011793,2]
[327066938,1715776244882,-500.0,0.00011793,2]
[327066939,1715776244892,-499.38,0.00011793,2]
[327066940,1715776244901,-500.0,0.00011793,2]
[327066941,1715776244911,-2381.75,0.00011793,2]
[327066942,1715776244920,-500.0,0.00011793,2]
[327066943,1715776244931,-500.0,0.00011793,2]
[327066944,1715776244940,-500.0,0.00011793,2]
[327066945,1715776244949,-500.0,0.00011793,2]
[327066946,1715776244967,-500.0,0.00011793,2]
[327066947,1715776244975,-500.0,0.00011793,2]
[327066948,1715776244985,-600.58,0.00011793,2]
[327066949,1715776244994,-500.0,0.00011793,2]
[327066950,1715776245004,-471.0,0.00011793,2]
[327066951,1715776245013,-568.58,0.00011793,2]
[327066952,1715776245025,-348.2530013,0.00011793,2]
[327066953,1715776245034,-500.0,0.00011793,2]
[327066954,1715776245044,-2827.179098,0.00011793,2]
[327066955,1715776245054,-151.0,0.00011793,2]
[327066956,1715776245064,-2827.179098,0.00011793,2]
[327066957,1715776245074,-494.65842,0.00011793,2]
[327066958,1715776245083,-500.0,0.00011793,2]
[327066959,1715776245093,-494.65842,0.00011793,2]
[327066960,1715776245102,-500.0,0.00011793,2]
[327066961,1715776245112,-500.0,0.00011793,2]
[327066962,1715776245122,-500.0,0.00011793,2]
[327066963,1715776245131,-299.013828,0.00011793,2]
[327066964,1715776245141,-500.0,0.00011793,2]
[327066965,1715776245151,-299.013828,0.00011793,2]
[327066966,1715776245161,-500.0,0.00011793,2]
[327066967,1715776245170,-151.0,0.00011793,2]
[327066968,1715776245180,-500.0,0.00011793,2]
[327066969,1715776245189,-347.54,0.00011793,2]
[327066970,1715776245199,-151.0,0.00011793,2]
[327066971,1715776245213,-151.0,0.00011793,2]
[327066972,1715776245223,-500.0,0.00011793,2]
[327066973,1715776245232,-500.0,0.00011793,2]
[327066974,1715776245242,-500.0,0.00011793,2]
[327066975,1715776245251,-151.0,0.00011793,2]
[327066976,1715776245261,-297.0,0.00011793,2]
[327066977,1715776245270,-4163.77,0.00011793,2]
[327066978,1715776245279,-151.0,0.00011793,2]
[327066979,1715776245288,-183.635057,0.00011793,2]
[327066980,1715776245297,-318.689831,0.00011793,2]
[327066981,1715776245307,-318.689831,0.00011793,2]
[327066982,1715776245316,-500.0,0.00011793,2]
[327066983,1715776245325,-155.209002,0.00011793,2]
[327066984,1715776245334,-500.0,0.00011793,2]
[327066985,1715776245343,-342.050319,0.00011793,2]
[327066986,1715776245352,-151.0,0.00011793,2]
[327066987,1715776245361,-200.0,0.00011793,2]
[327066988,1715776245371,-500.0,0.00011794,2]
[327066989,1715776245380,-223.12462143,0.00011794,2]
[327066990,1715776245390,-502.71600204,0.00011794,2]
[327066991,1715776245400,-500.0,0.00011794,2]
[327066992,1715776245410,-218.63,0.00011794,2]
[327066993,1715776245420,-500.0,0.00011794,2]
[327066994,1715776245430,-500.0,0.00011794,2]
[327066995,1715776245440,-259.23254486,0.00011794,2]
[327066996,1715776245449,-644.98,0.00011794,2]
[327066997,1715776245466,-473.76095321,0.00011794,2]
[327066998,1715776245475,-623.95,0.00011794,2]
[327066999,1715776245484,-500.0,0.00011794,2]
[327067000,1715776245493,-500.0,0.00011794,2]
[327067001,1715776245503,-505.82,0.00011794,2]
[327067002,1715776245512,-268.56,0.00011794,2]
[327067003,1715776245521,-195.25343238,0.00011794,2]
[327067004,1715776245530,-500.0,0.00011794,2]
[327067005,1715776245541,-479.76,0.00011794,2]
[327067006,1715776245550,-547.43,0.00011794,2]
[327067007,1715776245559,-648.01500581,0.00011794,2]
[327067008,1715776245570,-537.91,0.00011794,2]
[327067009,1715776245579,-500.0,0.00011794,2]
[327067011,1715776245589,-285.84,0.00011794,2]
[327067012,1715776245598,-500.0,0.00011794,2]
[327067013,1715776245607,-151.0,0.00011794,2]
[327067014,1715776245617,-277.35,0.00011794,2]
[327067015,1715776245627,-184.56,0.00011794,2]
[327067016,1715776245639,-500.0,0.00011794,2]
[327067017,1715776245649,-375.87,0.00011794,2]
[327067018,1715776245659,-234.24,0.00011794,2]
[327067019,1715776245669,-292.71,0.00011794,2]
[327067020,1715776245679,-500.0,0.00011794,2]
[327067021,1715776245690,-500.0,0.00011794,2]
[327067022,1715776245700,-500.0,0.00011794,2]
[327067023,1715776245725,-500.0,0.00011794,2]
[327067024,1715776245735,-391.96,0.00011794,2]
[327067025,1715776245744,-511.04,0.00011794,2]
[327067026,1715776245755,-373.44,0.00011794,2]
[327067027,1715776245765,-616.07,0.00011794,2]
[327067028,1715776245777,-491.5,0.00011794,2]
[327067029,1715776245787,-495.22,0.00011794,2]
[327067030,1715776245797,-569.47,0.00011794,2]
[327067031,1715776245808,-357.55,0.00011794,2]
[327067032,1715776245819,-210.39,0.00011794,2]
[327067033,1715776245830,-295.25,0.00011794,2]
[327067034,1715776245840,-429.07,0.00011794,2]
[327067035,1715776245850,-500.0,0.00011794,2]
[327067036,1715776245859,-500.0,0.00011794,2]
[327067037,1715776245870,-500.0,0.00011794,2]
[327067038,1715776245880,-500.0,0.00011794,2]
[327067039,1715776245891,-151.0,0.00011794,2]
[327067040,1715776245900,-151.0,0.00011794,2]
[327067041,1715776245910,-500.0,0.00011794,2]
[327067042,1715776245920,-151.0,0.00011794,2]
[327067043,1715776245930,-151.0,0.00011794,2]
[327067044,1715776245940,-320.12536179,0.00011794,2]
[327067045,1715776245950,-284.44,0.00011794,2]
[327067046,1715776245969,-329.26,0.00011794,2]
[327067047,1715776245979,-500.0,0.00011794,2]
[327067048,1715776245988,-541.21,0.00011794,2]
[327067049,1715776245997,-500.0,0.00011794,2]
[327067050,1715776246007,-306.74,0.00011794,2]
[327067051,1715776246016,-500.0,0.00011794,2]
[327067052,1715776246026,-154.145093,0.00011794,2]
[327067053,1715776246036,-384.5,0.00011794,2]
[327067054,1715776246046,-151.0,0.00011794,2]
[327067055,1715776246055,-229.68111379,0.00011794,2]
[327067056,1715776246065,-161.15669394,0.00011794,2]
[327067057,1715776246075,-551.73,0.00011794,2]
[327067058,1715776246085,-500.0,0.00011794,2]
[327067059,1715776246094,-268.12,0.00011794,2]
[327067060,1715776246103,-500.0,0.00011794,2]
[327067061,1715776246112,-459.97009511,0.00011794,2]
[327067062,1715776246139,-500.0,0.0001178,2]
[327067063,1715776246148,-40.02990489,0.00011794,2]
[327067064,1715776246158,-563.68,0.00011794,2]
[327067065,1715776246167,-192.96649003,0.00011794,2]
[327067066,1715776246176,-154.33722222,0.00011794,2]
[327067067,1715776246186,-500.0,0.00011794,2]
[327067068,1715776246195,-477.4068148,0.00011794,2]
[327067069,1715776246210,-440.01298498,0.00011794,2]
[327067070,1715776246222,-59.98701502,0.00011794,2]
[327067071,1715776246232,-500.0,0.00011794,2]
[327067072,1715776246242,-395.08,0.00011794,2]
[327067073,1715776246253,-191.04,0.00011794,2]
[327067074,1715776246262,-200.9034074,0.00011794,2]
[327067075,1715776246272,-196.21,0.00011794,2]
[327067076,1715776246282,-500.0,0.00011794,2]
[327067077,1715776246291,-320.48,0.00011794,2]
[327067078,1715776246301,-392.99855338,0.00011794,2]
[327067079,1715776246325,-253.26204274,0.00010798,2]
[327067080,1715776246337,-1057.8133189,0.00010798,2]
[327067081,1715776246348,-437.59499999,0.00010798,2]
[327067082,1715776246360,-303.21608532,0.00010798,2]
[327067083,1715776246371,-586.86666819,0.00010798,2]
[327067084,1715776246407,-2922.086231,0.00010798,2]
[327067085,1715776246417,-500.0,0.0001178,2]
[327067086,1715776246427,-145.19144662,0.00011794,2]
[327067087,1715776246437,-151.0,0.00011794,2]
[327067089,1715776246447,-500.0,0.00011794,2]
[327067090,1715776246464,-151.0,0.00011794,2]
[327067091,1715776246473,-333.64,0.00011794,2]
[327067092,1715776246483,-292.58,0.00011794,2]
[327067093,1715776246492,-500.0,0.00011794,2]
[327067094,1715776246501,-277.84095761,0.00011794,2]
[327067095,1715776246511,-151.0,0.00011794,2]
[327067096,1715776246522,-151.0,0.00011794,2]
[327067097,1715776246531,-500.0,0.00011794,2]
[327067098,1715776246541,-500.0,0.00011794,2]
[327067099,1715776246550,-151.0,0.00011794,2]
[327067100,1715776246560,-500.0,0.00011794,2]
[327067101,1715776246570,-857.675246,0.00011794,2]
[327067102,1715776246579,-151.0,0.00011794,2]
[327067103,1715776246589,-500.0,0.00011794,2]
[327067104,1715776246598,-761.9,0.00011794,2]
[327067105,1715776246607,-857.675246,0.00011794,2]
[327067106,1715776246617,-151.0,0.00011794,2]
[327067107,1715776246626,-151.0,0.00011794,2]
[327067108,1715776246647,-738.08703,0.00011794,2]
[327067110,1715776246656,-568.28,0.00011794,2]
[327067112,1715776246679,-237.75,0.00011794,2]
[327067114,1715776246688,-738.08703,0.00011794,2]
[327067116,1715776246698,-500.0,0.00011794,2]
[327067118,1715776246715,-431.97,0.00011794,2]
[327067119,1715776246724,-289.546139,0.00011794,2]
[327067120,1715776246733,-151.0,0.00011794,2]
[327067121,1715776246742,-154.91889,0.00011794,2]
[327067122,1715776246752,-151.0,0.00011794,2]
[327067123,1715776246763,-154.91889,0.00011794,2]
[327067124,1715776246773,-200.69,0.00011794,2]
[327067125,1715776246782,-500.0,0.00011794,2]
[327067126,1715776246790,-164.82,0.00011794,2]
[327067127,1715776246800,-151.0,0.00011794,2]
[327067128,1715776246809,-500.0,0.00011794,2]
[327067129,1715776246820,-500.0,0.00011794,2]
[327067130,1715776246830,-151.0,0.00011794,2]
[327067131,1715776246840,-151.0,0.00011794,2]
[327067132,1715776246851,-500.0,0.00011794,2]
[327067133,1715776246861,-500.0,0.00011794,2]
[327067134,1715776246872,-500.0,0.00011794,2]
[327067135,1715776246883,-500.0,0.00011794,2]
[327067136,1715776246894,-500.0,0.00011794,2]
[327067137,1715776246906,-151.0,0.00011794,2]
[327067138,1715776246916,-151.0,0.00011794,2]
[327067139,1715776246926,-500.0,0.00011794,2]
[327067140,1715776246936,-500.0,0.00011794,2]
[327067141,1715776246947,-500.0,0.00011794,2]
[327067142,1715776246968,-151.0,0.00011794,2]
[327067143,1715776246978,-187.02,0.00011794,2]
[327067144,1715776246988,-500.0,0.00011794,2]
[327067145,1715776246998,-151.0,0.00011794,2]
[327067146,1715776247010,-151.0,0.00011794,2]
[327067147,1715776247021,-151.0,0.00011794,2]
[327067148,1715776247031,-263.13,0.00011794,2]
[327067149,1715776247041,-151.0,0.00011794,2]
[327067150,1715776247051,-151.0,0.00011794,2]
[327067151,1715776247062,-500.0,0.00011794,2]
[327067152,1715776247074,-270.11,0.00011794,2]
[327067153,1715776247085,-151.0,0.00011794,2]
[327067154,1715776247095,-154.402644,0.00011794,2]
[327067155,1715776247230,-500.0,0.00011794,2]
[327067156,1715776247259,-500.0,0.00011794,2]
[327067157,1715776247269,-500.0,0.00011794,2]
[327067158,1715776247279,-415.94,0.00011794,2]
[327067159,1715776247289,-500.0,0.00011794,2]
[327067160,1715776247299,-529.84,0.00011794,2]
[327067161,1715776247309,-381.8,0.00011794,2]
[327067162,1715776247319,-262.94777695,0.00011794,2]
[327067163,1715776247328,-2827.179098,0.00011794,2]
[327067164,1715776247337,-151.0,0.00011794,2]
[327067165,1715776247347,-2827.179098,0.00011794,2]
[327067166,1715776247357,-494.65842,0.00011794,2]
[327067167,1715776247366,-311.03670678,0.00011794,2]
[327067168,1715776247376,-494.65842,0.00011794,2]
[327067169,1715776247385,-500.0,0.00011794,2]
[327067170,1715776247395,-299.013828,0.00011794,2]
[327067171,1715776247404,-299.013828,0.00011794,2]
[327067172,1715776247413,-151.0,0.00011794,2]
[327067173,1715776247422,-424.82,0.00011794,2]
[327067174,1715776247431,-151.446026,0.00011794,2]
[327067175,1715776247440,-500.0,0.00011794,2]
[327067176,1715776247450,-631.14,0.00011794,2]
[327067177,1715776247468,-500.0,0.00011794,2]
[327067178,1715776247478,-151.0,0.00011794,2]
[327067179,1715776247489,-583.25,0.00011794,2]
[327067180,1715776247498,-500.0,0.00011794,2]
[327067181,1715776247508,-151.0,0.00011794,2]
[327067182,1715776247517,-318.689831,0.00011794,2]
[327067183,1715776247527,-318.689831,0.00011794,2]
[327067184,1715776247536,-500.0,0.00011794,2]
[327067185,1715776247545,-342.050319,0.00011794,2]
[327067186,1715776247554,-151.0,0.00011794,2]
[327067187,1715776247564,-200.0,0.00011798,2]
[327067188,1715776247575,-166.52664003,0.00011798,2]
[327067189,1715776247589,-413.56911349,0.00011798,2]
[327067190,1715776247816,-342.07051661,0.0001178,2]
[327067191,1715776247828,-224.91948339,0.0001178,2]
[327067192,1715776247838,-250.97230589,0.0001178,2]
[327067193,1715776247848,-305.93980072,0.0001178,2]
[327067194,1715776247868,-194.06019928,0.0001178,2]
[327067195,1715776247879,-342.050319,0.00011793,2]
[327067196,1715776247889,-342.050319,0.00011794,2]
[327067197,1715776247900,-419.90424648,0.00011798,2]
[327067198,1715776247909,-500.0,0.00011798,2]
[327067199,1715776247919,-151.0,0.00011798,2]
[327067200,1715776247929,-151.0,0.00011798,2]
[327067201,1715776247938,-151.0,0.00011798,2]
[327067202,1715776247948,-151.0,0.00011798,2]
[327067203,1715776247964,-1251.95302768,0.00011798,2]
[327067204,1715776247973,-220.15257245,0.00011798,2]
[327067205,1715776247982,-239.91453788,0.00011798,2]
[327067206,1715776247991,-199.32461269,0.00011798,2]
[327067207,1715776248000,-500.0,0.000118,4]
[327067208,1715776248009,-200.0,0.00011801,2]
[327067209,1715776248017,-1364.72096554,0.0001181,2]
[327067210,1715776248042,-281.27903446,0.0001181,2]
[327067211,1715776248052,-290.246,0.0001181,2]
[327067212,1715776248061,-359.60775513,0.0001181,2]
[327067213,1715776248073,-778.39224487,0.0001181,2]
[327067214,1715776248082,-2865.224,0.0001181,2]
[327067215,1715776248092,-444.0,0.0001181,2]
[327067216,1715776248101,-215.0,0.0001181,2]
[327067217,1715776248110,-255.503,0.0001181,2]
[327067218,1715776248119,-589.7532218,0.0001181,2]
[327067219,1715776248139,-382.2467782,0.0001181,2]
[327067220,1715776248149,-1464.0,0.0001181,2]
[327067221,1715776248159,-754.58,0.00011814,2]
[327067222,1715776248168,-290.57,0.00011814,2]
[327067223,1715776248179,-500.0,0.00011814,2]
[327067224,1715776248188,-465.35,0.00011814,2]
[327067226,1715776248198,-493.91,0.00011814,2]
[327067228,1715776248207,-269.16,0.00011814,2]
[327067230,1715776248217,-151.71,0.00011814,2]
[327067232,1715776248226,-500.0,0.00011814,2]
[327067234,1715776248235,-446.3284007,0.00011814,2]
[327067236,1715776248247,-53.6715993,0.00011814,2]
[327067238,1715776248257,-487.63118855,0.00011814,2]
[327067240,1715776248267,-500.0,0.00011814,2]
[327067242,1715776248276,-500.0,0.00011814,2]
[327067244,1715776248286,-151.0,0.00011836,2]
[327067246,1715776248295,-151.0,0.00011836,2]
[327067248,1715776248305,-151.0,0.00011836,2]
[327067250,1715776248314,-151.0,0.00011836,2]
[327067252,1715776248323,-151.0,0.00011836,2]
[327067254,1715776248333,-151.0,0.00011836,2]
[327067256,1715776248343,-857.675246,0.00011836,2]
[327067258,1715776248352,-151.0,0.00011836,2]
[327067261,1715776248361,-151.0,0.00011836,2]
[327067263,1715776248370,-738.08703,0.00011836,2]
[327067264,1715776248380,-738.08703,0.00011836,2]
[327067267,1715776248390,-151.0,0.00011836,2]
[327067269,1715776248402,-154.91889,0.00011836,2]
[327067271,1715776248411,-151.0,0.00011836,2]
[327067273,1715776248420,-154.91889,0.00011836,2]
[327067275,1715776248430,-151.0,0.00011836,2]
[327067276,1715776248438,-151.0,0.00011836,2]
[327067279,1715776248448,-151.0,0.00011836,2]
[327067280,1715776248457,-151.0,0.00011836,2]
[327067282,1715776248466,-151.0,0.00011836,2]
[327067284,1715776248476,-318.689831,0.00011836,2]
[327067287,1715776248485,-318.689831,0.00011836,2]
[327067289,1715776248495,-342.050319,0.00011836,2]
[327067290,1715776248504,-151.0,0.00011836,2]
[327067292,1715776248513,-342.050319,0.00011836,2]
[327067294,1715776248522,-4004.42847554,0.00011836,2]
[327067350,1715776249042,-500.0,0.000111,4]
[327067352,1715776249052,-786.01328,0.000112,4]
[327067354,1715776249064,-313.98672,0.000112,4]
[327067356,1715776249073,-500.0,0.0001178,2]
[327067358,1715776249084,-500.0,0.0001178,2]
[327067361,1715776249094,-549.64,0.0001178,2]
[327067363,1715776249103,-475.60321511,0.0001178,2]
[327067365,1715776249113,-500.0,0.0001178,2]
[327067367,1715776249124,-500.0,0.0001178,2]
[327067368,1715776249133,-19410.68036744,0.00011836,2]
[327067371,1715776249142,-1251.95302768,0.00011849,2]
[327067373,1715776249152,-239.91453787,0.00011849,2]
[327067375,1715776249162,-500.0,0.00011868,2]
[327067376,1715776249172,-500.0,0.00011868,2]
[327067378,1715776249181,-500.0,0.00011868,2]
[327067380,1715776249192,-500.0,0.00011868,2]
[327067383,1715776249202,-500.0,0.00011868,2]
[327067385,1715776249212,-561.65423442,0.00011868,2]
[327067387,1715776249222,-500.0,0.00011869,2]
[327067389,1715776249231,-500.0,0.00011869,2]
[327067391,1715776249240,-697.78,0.00011869,2]
[327067392,1715776249250,-500.0,0.00011869,2]
[327067394,1715776249259,-500.0,0.00011869,2]
[327067396,1715776249269,-500.0,0.00011869,2]
[327067398,1715776249278,-500.0,0.00011869,2]
[327067400,1715776249287,-500.0,0.00011869,2]
[327067402,1715776249296,-500.0,0.00011869,2]
[327067404,1715776249305,-500.0,0.00011869,2]
[327067406,1715776249315,-500.0,0.00011869,2]
[327067408,1715776249323,-500.0,0.00011869,2]
[327067410,1715776249333,-500.0,0.00011869,2]
[327067412,1715776249342,-601.15,0.00011869,2]
[327067414,1715776249351,-500.0,0.00011869,2]
[327067416,1715776249361,-500.0,0.00011869,2]
[327067418,1715776249370,-2827.179098,0.00011869,2]
[327067420,1715776249379,-247.96698836,0.00011869,2]
[327067423,1715776249391,-252.03301164,0.00011869,2]
[327067425,1715776249399,-0.71699132,0.00011869,2]
[327067427,1715776249411,-735.875,0.00011869,2]
[327067429,1715776249421,-1719.94302761,0.00011869,2]
[327067585,1715776360545,200.0,0.0001181,30]
[327067586,1715776360589,200.0,0.0001181,30]
[327067587,1715776360642,200.0,0.0001181,30]
[327067588,1715776360696,200.0,0.0001181,30]
[327067589,1715776360756,234.4643749,0.0001181,30]
[327067590,1715776379294,-155.0,0.00010599,2]
[327067591,1715776379317,-537.37856684,0.00010599,2]
[327067592,1715776379340,-3088.57586863,0.000106,2]
[327067593,1715776379363,-219.04556453,0.000106,2]
[327067594,1715776380297,-47.14753216,0.000106,2]
[327067595,1715776380320,-3952.85246784,0.00010601,2]
[327067597,1715776389942,-782.29340259,0.00010597,2]
[327067598,1715776389965,-324.70535522,0.00010597,2]
[327067599,1715776389988,-2221.21263822,0.00010597,2]
[327067600,1715776390010,-155.0,0.00010598,2]
[327067601,1715776390033,-155.0,0.00010598,2]
[327067602,1715776390056,-361.78860397,0.00010601,2]
[327067604,1715776415893,250.0,0.00010412,2]
[327067610,1715776440298,664.85,0.00010342,2]
[327067611,1715776470386,115.79495364,0.00010342,2]
[327067612,1715776506619,165.5,8.373e-05,2]
[327067613,1715776510802,155.0,0.00010312,2]
[327067614,1715776568954,409.53880805,0.00010312,2]
[327067615,1715776582941,327.80744002,0.00010312,2]
[327067616,1715776602789,1971.25263008,0.000231,120]
[327067617,1715776626301,351.23835064,0.00012,30]
[327067618,1715776673572,1107.88705193,0.00010151,2]
[327067619,1715776673601,4000.0,0.00010151,2]
[327067620,1715776673625,354.12294807,0.00010151,2]
[327067630,1715776809417,155.0,0.0001032,2]
[327067631,1715776813850,911.52,0.00010135,2]
[327067634,1715776816300,155.0,0.0001032,2]
[327067635,1715776836803,2424.35705193,0.0001032,2]
[327067636,1715776836828,1851.03948899,0.0001032,2]
[327067637,1715776847068,2148.96051101,0.0001032,2]
[327067638,1715776919959,250.0,0.00010274,2]
[327067639,1715776936729,-155.12,0.00010316,2]
[327067640,1715776936760,-155.0,0.00010317,2]
[327067641,1715776936794,-643.1326905,0.00010317,2]
[327067642,1715776936813,-155.12,0.00010317,2]
[327067643,1715776936832,-155.0,0.00010317,2]
[327067644,1715776936850,-643.1326905,0.00010317,2]
[327067645,1715776936865,-2916.494619,0.00010317,2]
[327067646,1715776956611,168.83467771,0.00010217,2]
[327067647,1715776966272,-1191.42413137,0.00010316,2]
[327067648,1715776966291,-1897.15173726,0.00010316,2]
[327067649,1715776966301,-556.73619128,0.00010317,2]
[327067650,1715776966311,-334.0,0.00010317,2]
[327067651,1715776966321,-155.12,0.00010325,2]
[327067652,1715776966330,-145.56794009,0.00010331,2]
[327067653,1715776979762,157.22,8.355e-05,2]
[327067654,1715776999303,-160.39765991,0.00010331,2]
[327067655,1715776999341,-155.12,0.00010333,2]
[327067656,1715776999373,-138.30438865,0.00010334,2]
[327067657,1715776999386,-19.35590288,0.00010334,2]
[327067658,1715776999396,-141.04175703,0.00010342,2]
[327067659,1715776999407,-14.07824297,0.00010342,2]
[327067660,1715776999416,-141.04175703,0.0001035,2]
[327067661,1715776999436,-14.07824297,0.0001035,2]
[327067662,1715776999445,-143.58204856,0.00010351,2]
[327067663,1715777069189,-500.0,0.00010319,3]
[327067664,1715777069215,-76.95795144,0.00010351,2]
[327067665,1715777069239,-155.12,0.00010359,2]
[327067666,1715777069264,-177.06,0.00010361,2]
[327067667,1715777069288,-155.12,0.00010368,2]
[327067668,1715777069311,-499.99,0.00010446,2]
[327067669,1715777069335,-155.0,0.00010462,2]
[327067670,1715777069358,-22934.75204856,0.0001058,2]
[327067671,1715777146680,-165.15,0.00010411,2]
[327067672,1715777146702,-643.1326905,0.00010578,2]
[327067673,1715777146724,-150.0,0.00010579,2]
[327067674,1715777146746,-10576.7173095,0.0001058,2]
[327067685,1715777341935,1000.0,0.00010292,2]
[327067700,1715777433183,-782.29340259,0.0001034,2]
[327067701,1715777433193,-155.0,0.00010341,2]
[327067702,1715777433203,-266.19309669,0.00010341,2]
[327067703,1715777433212,-4156.70840472,0.00010341,2]
[327067708,1715777433346,-882.33461522,0.00010341,2]
[327067709,1715777433360,-232.60856201,0.00010341,2]
[327067710,1715777433370,-184.46114841,0.00010342,2]
[327067711,1715777433382,-81.73194828,0.00010342,2]
[327067712,1715777433393,-643.1326905,0.00010342,2]
[327067713,1715777433402,-155.0,0.00010343,2]
[327067714,1715777433411,-260.48203453,0.00010344,2]
[327067715,1715777433420,-168.12,0.00010351,2]
[327067716,1715777433429,-250.0,0.00010401,2]
[327067717,1715777433438,-150.0,0.00010579,2]
[327067718,1715777433447,-150.0,0.00010579,2]
[327067719,1715777433457,-34087.96120073,0.0001058,2]
[327067720,1715777433546,-2327.47502402,0.0001058,2]
[327067721,1715777433560,-4822.69,0.0001058,2]
[327067722,1715777433571,-8344.98795246,0.0001058,2]
[327067723,1715777433579,-499.99,0.0001058,2]
[327067724,1715777433585,-173.26212603,0.0001058,2]
[327067725,1715777433592,-378.12193428,0.00010601,2]
[327067726,1715777433598,-10044.01,0.00010601,2]